fUSD/lending_fUSD_20250522
["ID","MTS","AMOUNT","RATE_DAILY","PERIOD"]
[362023964,1747938637522,-291.68797187,0.000189,2]
[362023967,1747938637536,-350.0,0.00019,2]
[362023969,1747938637545,-1264.9404002,0.00019333,2]
[362023971,1747938637559,-5716.0230919,0.00019344,2]
[362023973,1747938637569,-155.07514328,0.00019721,2]
[362023975,1747938637579,-291.68797185,0.00019797,2]
[362023977,1747938637589,-199.5604233,0.00020471,2]
[362023979,1747938637600,-291.68797185,0.00020693,3]
[362023981,1747938637609,-400.0,0.00021,2]
[362023982,1747938637619,-291.68797185,0.0002159,5]
[362023984,1747938637628,-1264.9404002,0.00021766,2]
[362023986,1747938637638,-5716.0230919,0.00021789,2]
[362023988,1747938637648,-291.68797185,0.00022486,7]
[362023990,1747938637657,-155.07514328,0.00022542,2]
[362023992,1747938637667,-450.0,0.00023,2]
[362023994,1747938637676,-291.68797185,0.00023383,9]
[362023996,1747938637688,-3916.90147898,0.00024,5]
[362023998,1747938637698,-1264.9404002,0.00024199,2]
[362024000,1747938637708,-5716.0230919,0.00024233,2]
[362024002,1747938637718,-291.68797185,0.00024279,10]
[362024004,1747938637727,-500.0,0.00024773,2]
[362024006,1747938637737,-500.0,0.00024773,2]
[362024008,1747938637747,-177940.68683261,0.000248,3]
[362024011,1747938637763,-61039.17398839,0.000248,3]
[362024013,1747938637773,-500.0,0.00025,2]
[362024015,1747938637782,-864.00655287,0.00025,3]
[362024017,1747938637792,-291.68797185,0.00025176,12]
[362024019,1747938637805,-155.07514328,0.00025362,2]
[362024021,1747938637814,-10943.69,0.00025968,2]
[362024023,1747938637823,-291.68797185,0.00026072,14]
[362024025,1747938637833,-1264.9404002,0.00026632,2]
[362024027,1747938637843,-5716.0230919,0.00026678,2]
[362024029,1747938637852,-291.68797185,0.00026969,16]
[362024031,1747938637862,-550.0,0.00027,2]
[362024033,1747938637871,-825.97521098,0.0002739,5]
[362024035,1747938637881,-3061.86474158,0.000274,20]
[362024037,1747938637890,-170.23,0.00027464,2]
[362024039,1747938637900,-291.68797185,0.00027866,17]
[362024041,1747938637909,-155.07514328,0.00028183,2]
[362024043,1747938637920,-291.68797185,0.00028762,19]
[362024045,1747938637929,-182.26186348,0.00028767,2]
[362024047,1747938637939,-600.0,0.00029,2]
[362024049,1747938637949,-1264.9404002,0.00029065,2]
[362024050,1747938637958,-5716.0230919,0.00029122,2]
[362024052,1747938637967,-291.68797185,0.00029659,21]
[362024054,1747938637976,-291.68797185,0.00030555,23]
[362024056,1747938637986,-650.0,0.00031,2]
[362024058,1747938637995,-155.07514328,0.00031004,15]
[362024060,1747938638004,-2834.28106536,0.00031173,4]
[362024062,1747938638014,-291.68797185,0.00031452,25]
[362024064,1747938638023,-1264.9404002,0.00031498,2]
[362024066,1747938638032,-5716.0230919,0.00031567,2]
[362024068,1747938638046,-1407.0,0.000316,2]
[362024070,1747938638058,-431.68,0.00031791,2]
[362024072,1747938638067,-2189.15511944,0.00032164,5]
[362024074,1747938638077,-5561.0,0.000322,3]
[362024076,1747938638086,-673.41993332,0.00032264,30]
[362024078,1747938638095,-291.68797185,0.00032348,26]
[362024080,1747938638105,-420.0,0.00032876,5]
[362024082,1747938638115,-230.61070488,0.00032876,5]
[362024084,1747938638125,-420.0,0.00032876,5]
[362024086,1747938638134,-420.0,0.00032876,5]
[362024088,1747938638143,-420.0,0.00032876,5]
[362024090,1747938638155,-420.0,0.00032876,5]
[362024092,1747938638164,-420.0,0.00032876,5]
[362024093,1747938638174,-420.0,0.00032876,5]
[362024095,1747938638184,-420.0,0.00032876,5]
[362024098,1747938638196,-1473.77,0.00032876,2]
[362024100,1747938638206,-420.0,0.00032876,5]
[362024102,1747938638216,-420.0,0.00032876,5]
[362024104,1747938638225,-420.0,0.00032876,5]
[362024106,1747938638235,-420.0,0.00032876,5]
[362024108,1747938638245,-150.812499,0.00032876,5]
[362024110,1747938638255,-420.0,0.00032876,5]
[362024112,1747938638269,-420.0,0.00032876,5]
[362024113,1747938638280,-420.0,0.00032876,5]
[362024115,1747938638289,-420.0,0.00032876,5]
[362024117,1747938638298,-420.0,0.00032876,5]
[362024119,1747938638314,-420.0,0.00032876,5]
[362024121,1747938638323,-420.0,0.00032876,5]
[362024123,1747938638333,-420.0,0.00032876,5]
[362024125,1747938638342,-420.0,0.00032876,5]
[362024127,1747938638354,-1462.01329339,0.00032888,2]
[362024129,1747938638364,-5561.0,0.000329,5]
[362024131,1747938638373,-917.7786304,0.00033,5]
[362024133,1747938638384,-150.0,0.00033,5]
[362024135,1747938638394,-2189.15511945,0.000331,6]
[362024137,1747938638403,-151.74,0.00033119,2]
[362024139,1747938638412,-420.0,0.0003315,5]
[362024141,1747938638423,-420.0,0.0003315,5]
[362024143,1747938638433,-420.0,0.0003315,5]
[362024145,1747938638442,-420.0,0.0003315,5]
[362024147,1747938638451,-420.0,0.0003315,5]
[362024149,1747938638461,-420.0,0.0003315,5]
[362024150,1747938638470,-420.0,0.0003315,5]
[362024152,1747938638480,-420.0,0.0003315,5]
[362024155,1747938638491,-1473.77,0.0003315,2]
[362024156,1747938638500,-420.0,0.0003315,5]
[362024158,1747938638510,-420.0,0.0003315,5]
[362024160,1747938638519,-420.0,0.0003315,5]
[362024162,1747938638528,-420.0,0.0003315,5]
[362024164,1747938638537,-420.0,0.0003315,5]
[362024166,1747938638546,-420.0,0.0003315,5]
[362024168,1747938638558,-420.0,0.0003315,5]
[362024170,1747938638567,-420.0,0.0003315,5]
[362024172,1747938638577,-420.0,0.0003315,5]
[362024174,1747938638586,-420.0,0.0003315,5]
[362024176,1747938638596,-420.0,0.0003315,5]
[362024178,1747938638605,-420.0,0.0003315,5]
[362024180,1747938638614,-420.0,0.0003315,5]
[362024182,1747938638624,-291.68797185,0.00033245,28]
[362024184,1747938638633,-420.0,0.00033424,5]
[362024186,1747938638642,-420.0,0.00033424,5]
[362024188,1747938638651,-420.0,0.00033424,5]
[362024189,1747938638660,-420.0,0.00033424,5]
[362024191,1747938638670,-420.0,0.00033424,5]
[362024193,1747938638679,-420.0,0.00033424,5]
[362024195,1747938638688,-420.0,0.00033424,5]
[362024197,1747938638697,-420.0,0.00033424,5]
[362024199,1747938638706,-1473.77,0.00033424,2]
[362024201,1747938638716,-420.0,0.00033424,5]
[362024203,1747938638725,-420.0,0.00033424,5]
[362024205,1747938638734,-420.0,0.00033424,5]
[362024207,1747938638744,-420.0,0.00033424,5]
[362024209,1747938638753,-420.0,0.00033424,5]
[362024211,1747938638763,-420.0,0.00033424,5]
[362024213,1747938638772,-420.0,0.00033424,5]
[362024215,1747938638782,-420.0,0.00033424,5]
[362024217,1747938638791,-420.0,0.00033424,5]
[362024219,1747938638801,-420.0,0.00033424,5]
[362024221,1747938638810,-420.0,0.00033424,5]
[362024223,1747938638819,-420.0,0.00033424,5]
[362024225,1747938638832,-198.99,0.00033509,2]
[362024227,1747938638841,-420.0,0.00033698,5]
[362024229,1747938638851,-420.0,0.00033698,5]
[362024231,1747938638860,-420.0,0.00033698,5]
[362024233,1747938638871,-420.0,0.00033698,5]
[362024235,1747938638881,-420.0,0.00033698,5]
[362024237,1747938638890,-420.0,0.00033698,5]
[362024239,1747938638898,-420.0,0.00033698,5]
[362024241,1747938638908,-420.0,0.00033698,5]
[362024243,1747938638917,-1473.77,0.00033698,2]
[362024245,1747938638927,-420.0,0.00033698,5]
[362024247,1747938638937,-420.0,0.00033698,5]
[362024249,1747938638946,-420.0,0.00033698,5]
[362024251,1747938638955,-420.0,0.00033698,5]
[362024253,1747938638964,-150.812499,0.00033698,5]
[362024255,1747938638973,-420.0,0.00033698,5]
[362024257,1747938638982,-420.0,0.00033698,5]
[362024259,1747938638992,-420.0,0.00033698,5]
[362024261,1747938639002,-420.0,0.00033698,5]
[362024263,1747938639011,-420.0,0.00033698,5]
[362024265,1747938639021,-420.0,0.00033698,5]
[362024267,1747938639030,-420.0,0.00033698,5]
[362024269,1747938639039,-155.38,0.00033709,120]
[362024271,1747938639049,-1000.0,0.00033747,2]
[362024272,1747938639059,-155.07514328,0.00033825,15]
[362024274,1747938639069,-561.63,0.00033876,2]
[362024276,1747938639078,-1264.9404002,0.00033931,2]
[362024278,1747938639088,-154.0,0.00033937,2]
[362024280,1747938639097,-6828.0,0.00033937,2]
[362024282,1747938639106,-880.0,0.00033937,2]
[362024284,1747938639116,-420.0,0.00033968,5]
[362024286,1747938639126,-420.0,0.00033968,5]
[362024288,1747938639135,-420.0,0.00033968,5]
[362024290,1747938639145,-420.0,0.00033968,5]
[362024292,1747938639154,-420.0,0.00033968,5]
[362024294,1747938639163,-420.0,0.00033972,5]
[362024296,1747938639172,-420.0,0.00033972,5]
[362024298,1747938639181,-554.0957348,0.00033972,5]
[362024300,1747938639190,-420.0,0.00033972,5]
[362024302,1747938639200,-420.0,0.00033972,5]
[362024304,1747938639210,-420.0,0.00033972,5]
[362024306,1747938639219,-420.0,0.00033972,5]
[362024308,1747938639228,-420.0,0.00033972,5]
[362024310,1747938639237,-1473.77,0.00033972,2]
[362024312,1747938639247,-415.81261657,0.00033972,5]
[362024315,1747938639257,-526.96402706,0.00033972,5]
[362024317,1747938639266,-420.0,0.00033972,5]
[362024319,1747938639275,-420.0,0.00033972,5]
[362024322,1747938639284,-420.0,0.00033972,5]
[362024324,1747938639293,-420.0,0.00033972,5]
[362024326,1747938639304,-420.0,0.00033972,5]
[362024328,1747938639313,-420.0,0.00033972,5]
[362024330,1747938639323,-420.0,0.00033972,5]
[362024332,1747938639332,-420.0,0.00033972,5]
[362024334,1747938639341,-420.0,0.00033972,5]
[362024336,1747938639350,-150.0,0.00034,5]
[362024337,1747938639359,-5716.0230919,0.00034011,2]
[362024339,1747938639369,-431.68,0.00034055,2]
[362024341,1747938639378,-291.68797185,0.00034141,30]
[362024343,1747938639388,-420.0,0.00034242,5]
[362024346,1747938639399,-420.0,0.00034242,5]
[362024348,1747938639408,-420.0,0.00034242,5]
[362024351,1747938639419,-420.0,0.00034242,5]
[362024353,1747938639428,-420.0,0.00034242,5]
[362024355,1747938639439,-420.0,0.00034246,5]
[362024357,1747938639448,-420.0,0.00034246,5]
[362024359,1747938639458,-420.0,0.00034246,5]
[362024361,1747938639468,-298.91497849,0.00034246,5]
[362024363,1747938639477,-420.0,0.00034246,5]
[362024366,1747938639487,-420.0,0.00034246,5]
[362024369,1747938639496,-173.64377871,0.00034246,5]
[362024372,1747938639506,-1473.77,0.00034246,2]
[362024373,1747938639515,-420.0,0.00034246,5]
[362024374,1747938639524,-420.0,0.00034246,5]
[362024375,1747938639533,-420.0,0.00034246,5]
[362024376,1747938639542,-420.0,0.00034246,5]
[362024377,1747938639551,-420.0,0.00034246,5]
[362024379,1747938639561,-420.0,0.00034246,5]
[362024380,1747938639570,-420.0,0.00034246,5]
[362024381,1747938639579,-420.0,0.00034246,5]
[362024382,1747938639589,-420.0,0.00034246,5]
[362024383,1747938639598,-500.0,0.000345,5]
[362024384,1747938639607,-556.45313163,0.00034516,5]
[362024385,1747938639617,-420.0,0.00034516,5]
[362024386,1747938639626,-420.0,0.00034516,5]
[362024387,1747938639635,-420.0,0.00034516,5]
[362024388,1747938639645,-420.0,0.00034516,5]
[362024389,1747938639655,-420.0,0.0003452,5]
[362024391,1747938639664,-420.0,0.0003452,5]
[362024393,1747938639673,-420.0,0.0003452,5]
[362024395,1747938639682,-420.0,0.0003452,5]
[362024396,1747938639691,-420.0,0.0003452,5]
[362024398,1747938639700,-1473.77,0.0003452,2]
[362024400,1747938639710,-420.0,0.0003452,5]
[362024402,1747938639720,-420.0,0.0003452,5]
[362024404,1747938639730,-464.94879313,0.0003452,5]
[362024406,1747938639739,-420.0,0.0003452,5]
[362024408,1747938639748,-420.0,0.0003452,5]
[362024410,1747938639758,-420.0,0.0003452,5]
[362024412,1747938639767,-195.49299502,0.0003452,5]
[362024414,1747938639776,-280.22856276,0.0003452,5]
[362024415,1747938639785,-375.679,0.00034757,39]
[362024417,1747938639794,-200.0,0.0003476,117]
[362024419,1747938639805,-420.0,0.0003479,5]
[362024421,1747938639814,-420.0,0.0003479,5]
[362024423,1747938639824,-420.0,0.0003479,5]
[362024425,1747938639833,-420.0,0.0003479,5]
[362024427,1747938639842,-420.0,0.00034794,5]
[362024429,1747938639852,-530.95110105,0.00034794,5]
[362024431,1747938639861,-420.0,0.00034794,5]
[362024433,1747938639871,-420.0,0.00034794,5]
[362024435,1747938639880,-208.95870006,0.00034794,5]
[362024436,1747938639889,-1473.77,0.00034794,2]
[362024438,1747938639898,-420.0,0.00034794,5]
[362024440,1747938639908,-420.0,0.00034794,5]
[362024442,1747938639917,-526.23153672,0.00034794,5]
[362024444,1747938639927,-420.0,0.00034794,5]
[362024446,1747938639936,-420.0,0.00034794,5]
[362024448,1747938639945,-155.81,0.000348,31]
[362024450,1747938639955,-155.81,0.000348,31]
[362024452,1747938639965,-155.81,0.000348,31]
[362024454,1747938639974,-155.81,0.000348,31]
[362024456,1747938639983,-155.81,0.000348,31]
[362024458,1747938639992,-155.81,0.000348,31]
[362024460,1747938640001,-155.81,0.000348,31]
[362024462,1747938640011,-155.81,0.000348,31]
[362024463,1747938640020,-155.81,0.000348,31]
[362024465,1747938640029,-155.81,0.000348,31]
[362024467,1747938640038,-155.81,0.000348,31]
[362024469,1747938640048,-155.81,0.000348,31]
[362024471,1747938640058,-904.62425615,0.00035,5]
[362024473,1747938640066,-150.0,0.00035,5]
[362024475,1747938640076,-411.10900036,0.00035,30]
[362024477,1747938640085,-291.68797185,0.00035038,32]
[362024479,1747938640094,-420.0,0.00035064,5]
[362024481,1747938640103,-420.0,0.00035064,5]
[362024483,1747938640112,-420.0,0.00035064,5]
[362024485,1747938640121,-420.0,0.00035064,5]
[362024487,1747938640131,-420.0,0.00035068,5]
[362024489,1747938640140,-540.06730843,0.00035068,5]
[362024490,1747938640150,-219.40528536,0.00035068,5]
[362024492,1747938640159,-1473.77,0.00035068,2]
[362024494,1747938640168,-420.0,0.00035068,5]
[362024496,1747938640178,-420.0,0.00035068,5]
[362024498,1747938640187,-420.0,0.00035068,5]
[362024500,1747938640196,-420.0,0.00035068,5]
[362024502,1747938640205,-420.0,0.00035338,5]
[362024504,1747938640215,-420.0,0.00035338,5]
[362024506,1747938640223,-420.0,0.00035338,5]
[362024508,1747938640233,-420.0,0.00035338,5]
[362024510,1747938640242,-420.0,0.00035342,5]
[362024512,1747938640251,-1473.77,0.00035342,2]
[362024513,1747938640260,-420.0,0.00035342,5]
[362024515,1747938640270,-420.0,0.00035342,5]
[362024517,1747938640279,-420.0,0.00035342,5]
[362024519,1747938640288,-420.0,0.00035342,5]
[362024521,1747938640297,-500.0,0.00035473,5]
[362024523,1747938640307,-46352.29451198,0.000355,7]
[362024527,1747938640338,-420.0,0.00033424,5]
[362024529,1747938640347,-158.867327,0.00033698,5]
[362024531,1747938640358,-261.132673,0.00033698,5]
[362024533,1747938640367,-420.0,0.0003452,5]
[362024535,1747938640376,-9654.867327,0.000355,7]
[362024538,1747938640408,-6341.52551918,0.000355,7]
[362024549,1747938640507,-420.0,0.00033698,5]
[362024551,1747938640517,-4041.0,0.00033937,2]
[362024553,1747938640526,-420.0,0.00033972,5]
[362024555,1747938640536,-417.91332362,0.00033972,5]
[362024557,1747938640545,-420.0,0.00034246,5]
[362024559,1747938640556,-316.8752285,0.0003452,5]
[362024561,1747938640566,-420.0,0.00034794,5]
[362024563,1747938640575,-171.46,0.000348,14]
[362024565,1747938640585,-420.0,0.00035068,5]
[362024566,1747938640594,-420.0,0.00035342,5]
[362024568,1747938640603,-1408.1697888,0.000355,7]
[362024587,1747938640777,-5580.5,0.000355,7]
[362024589,1747938640788,-6960.29,0.000355,7]
[362024592,1747938640800,-923.72036088,0.000355,7]
[362024594,1747938640812,-10542.72155176,0.000355,7]
[362024596,1747938640823,-665.28,0.000355,7]
[362024598,1747938640838,-720.47905909,0.000355,7]
[362024600,1747938640849,-419.77238971,0.000355,7]
[362024603,1747938640860,-1656.58520388,0.000355,7]
[362024605,1747938640871,-3731.23627561,0.000355,7]
[362024607,1747938640887,-15359.3198734,0.000355,7]
[362024609,1747938640898,-24104.6103854,0.000355,7]
[362024785,1747938642593,-199.5604233,0.00024043,2]
[362024787,1747938642604,-25879.8067507,0.000355,7]
[362025061,1747938645449,-420.0,0.00032876,5]
[362025063,1747938645459,-400.41823816,0.0003315,5]
[362025068,1747938645505,-19.58176184,0.0003315,5]
[362025070,1747938645515,-420.0,0.00033424,5]
[362025072,1747938645524,-420.0,0.00033698,5]
[362025074,1747938645533,-25402.42469672,0.000355,7]
[362025076,1747938645543,-420.0,0.00035612,5]
[362025078,1747938645552,-420.0,0.00035612,5]
[362025080,1747938645563,-420.0,0.00035616,5]
[362025082,1747938645572,-1473.77,0.00035616,2]
[362025084,1747938645582,-525.32756868,0.00035616,5]
[362025086,1747938645592,-420.0,0.00035616,5]
[362025088,1747938645602,-420.0,0.00035616,5]
[362025090,1747938645611,-420.0,0.00035616,5]
[362025109,1747938645787,-407.3522,0.00035616,5]
[362025112,1747938645806,-500.0,0.00035806,5]
[362025114,1747938645816,-500.0,0.00035836,5]
[362025116,1747938645826,-420.0,0.00035886,5]
[362025118,1747938645835,-292.97353448,0.00035886,5]
[362025120,1747938645845,-420.0,0.0003589,5]
[362025122,1747938645854,-1473.77,0.0003589,2]
[362025123,1747938645864,-420.0,0.0003589,5]
[362025125,1747938645874,-420.0,0.0003589,5]
[362025127,1747938645884,-420.0,0.0003589,5]
[362025129,1747938645894,-291.68797185,0.00035934,33]
[362025131,1747938645903,-150.0,0.00036,5]
[362025133,1747938645913,-171.46,0.00036,14]
[362025135,1747938645923,-486.62,0.00036157,5]
[362025137,1747938645933,-420.0,0.00036157,5]
[362025139,1747938645943,-420.0,0.00036157,5]
[362025141,1747938645953,-755.88,0.00036157,5]
[362025143,1747938645963,-420.0,0.00036157,5]
[362025145,1747938645972,-723.13,0.00036157,5]
[362025147,1747938645983,-494.6,0.00036157,5]
[362025149,1747938645995,-420.0,0.00036157,5]
[362025151,1747938646005,-420.0,0.00036157,5]
[362025153,1747938646015,-420.0,0.00036157,5]
[362025155,1747938646025,-420.0,0.00036157,5]
[362025157,1747938646035,-1059.84,0.00036157,5]
[362025159,1747938646047,-1876.21,0.00036157,5]
[362025161,1747938646058,-606.83,0.00036157,5]
[362025163,1747938646068,-420.0,0.00036157,5]
[362025165,1747938646078,-420.0,0.00036157,5]
[362025167,1747938646088,-622.13,0.00036157,5]
[362025169,1747938646099,-420.0,0.00036157,5]
[362025171,1747938646108,-420.0,0.00036157,5]
[362025173,1747938646118,-420.0,0.00036157,5]
[362025175,1747938646127,-420.0,0.00036157,5]
[362025177,1747938646136,-420.0,0.0003616,5]
[362025178,1747938646146,-420.0,0.0003616,5]
[362025179,1747938646155,-420.0,0.0003616,5]
[362025180,1747938646165,-420.0,0.0003616,5]
[362025181,1747938646174,-420.0,0.0003616,5]
[362025182,1747938646183,-420.0,0.0003616,5]
[362025183,1747938646192,-382.1403126,0.0003616,5]
[362025184,1747938646202,-420.0,0.0003616,5]
[362025185,1747938646211,-420.0,0.0003616,5]
[362025186,1747938646221,-1000.0,0.0003616,30]
[362025187,1747938646231,-420.0,0.0003616,5]
[362025188,1747938646243,-420.0,0.0003616,5]
[362025189,1747938646253,-420.0,0.0003616,5]
[362025190,1747938646262,-420.0,0.0003616,5]
[362025191,1747938646272,-420.0,0.0003616,5]
[362025193,1747938646281,-420.0,0.0003616,5]
[362025195,1747938646291,-319.85166671,0.0003616,5]
[362025197,1747938646301,-505.10305512,0.0003616,5]
[362025199,1747938646312,-420.0,0.00036164,5]
[362025201,1747938646322,-1473.77,0.00036164,2]
[362025203,1747938646332,-420.0,0.00036164,5]
[362025205,1747938646341,-420.0,0.00036164,5]
[362025207,1747938646351,-420.0,0.00036164,5]
[362025209,1747938646360,-431.68,0.00036318,2]
[362025211,1747938646371,-1264.9404002,0.00036364,2]
[362025213,1747938646380,-153.526828,0.00036403,4]
[362025215,1747938646391,-486.62,0.00036431,5]
[362025217,1747938646402,-420.0,0.00036431,5]
[362025219,1747938646412,-420.0,0.00036431,5]
[362025221,1747938646423,-755.88,0.00036431,5]
[362025223,1747938646435,-420.0,0.00036431,5]
[362025225,1747938646445,-723.13,0.00036431,5]
[362025227,1747938646454,-494.6,0.00036431,5]
[362025229,1747938646464,-420.0,0.00036431,5]
[362025231,1747938646475,-420.0,0.00036431,5]
[362025233,1747938646486,-420.0,0.00036431,5]
[362025235,1747938646499,-420.0,0.00036431,5]
[362025237,1747938646509,-1059.84,0.00036431,5]
[362025239,1747938646519,-1876.21,0.00036431,5]
[362025241,1747938646529,-606.83,0.00036431,5]
[362025243,1747938646539,-420.0,0.00036431,5]
[362025245,1747938646548,-420.0,0.00036431,5]
[362025247,1747938646559,-622.13,0.00036431,5]
[362025249,1747938646569,-420.0,0.00036431,5]
[362025251,1747938646579,-420.0,0.00036431,5]
[362025253,1747938646589,-420.0,0.00036431,5]
[362025255,1747938646599,-420.0,0.00036431,5]
[362025257,1747938646609,-420.0,0.00036433,5]
[362025259,1747938646619,-420.0,0.00036433,5]
[362025261,1747938646628,-420.0,0.00036433,5]
[362025263,1747938646638,-420.0,0.00036433,5]
[362025265,1747938646647,-420.0,0.00036433,5]
[362025267,1747938646657,-420.0,0.00036433,5]
[362025269,1747938646667,-420.0,0.00036433,5]
[362025271,1747938646676,-420.0,0.00036433,5]
[362025273,1747938646685,-420.0,0.00036433,5]
[362025275,1747938646695,-420.0,0.00036433,5]
[362025276,1747938646704,-420.0,0.00036433,5]
[362025278,1747938646714,-420.0,0.00036433,5]
[362025280,1747938646723,-420.0,0.00036433,5]
[362025282,1747938646736,-420.0,0.00036433,5]
[362025284,1747938646748,-420.0,0.00036433,5]
[362025286,1747938646757,-420.0,0.00036433,5]
[362025287,1747938646770,-495.07796044,0.00036433,5]
[362025289,1747938646782,-420.0,0.00036433,5]
[362025291,1747938646792,-420.0,0.00036433,5]
[362025293,1747938646804,-472.2742674,0.00036433,5]
[362025295,1747938646817,-420.0,0.00036433,5]
[362025297,1747938646827,-420.0,0.00036433,5]
[362025299,1747938646838,-420.0,0.00036433,5]
[362025301,1747938646847,-267.27781591,0.00036433,5]
[362025302,1747938646858,-420.0,0.00036433,5]
[362025304,1747938646868,-359.38806925,0.00036433,5]
[362025306,1747938646877,-420.0,0.00036433,5]
[362025308,1747938646887,-420.0,0.00036433,5]
[362025310,1747938646897,-420.0,0.00036433,5]
[362025312,1747938646906,-420.0,0.00036433,5]
[362025314,1747938646916,-420.0,0.00036433,5]
[362025316,1747938646925,-420.0,0.00036433,5]
[362025318,1747938646935,-420.0,0.00036433,5]
[362025320,1747938646945,-387.68962139,0.00036433,5]
[362025321,1747938646955,-420.0,0.00036433,5]
[362025323,1747938646964,-420.0,0.00036434,5]
[362025325,1747938646974,-420.0,0.00036434,5]
[362025327,1747938646983,-300.48416145,0.00036434,5]
[362025329,1747938646992,-394.06629054,0.00036434,5]
[362025331,1747938647002,-420.0,0.00036434,5]
[362025333,1747938647011,-420.0,0.00036434,5]
[362025335,1747938647021,-420.0,0.00036434,5]
[362025337,1747938647030,-420.0,0.00036434,5]
[362025339,1747938647041,-420.0,0.00036434,5]
[362025341,1747938647050,-536.15897385,0.00036434,5]
[362025343,1747938647061,-420.0,0.00036434,5]
[362025345,1747938647071,-420.0,0.00036434,5]
[362025347,1747938647080,-420.0,0.00036434,5]
[362025349,1747938647090,-420.0,0.00036434,5]
[362025350,1747938647099,-600.0,0.00036435,60]
[362025352,1747938647110,-420.0,0.00036438,5]
[362025354,1747938647120,-1473.77,0.00036438,2]
[362025356,1747938647130,-562.66845398,0.00036438,5]
[362025358,1747938647140,-355.14252542,0.00036438,5]
[362025360,1747938647151,-420.0,0.00036438,5]
[362025362,1747938647161,-5716.0230919,0.00036456,2]
[362025364,1747938647171,-155.07514328,0.00036645,15]
[362025366,1747938647181,-155.81,0.000367,31]
[362025368,1747938647190,-155.81,0.000367,31]
[362025370,1747938647200,-155.81,0.000367,31]
[362025372,1747938647209,-155.81,0.000367,31]
[362025374,1747938647219,-155.81,0.000367,31]
[362025376,1747938647230,-155.81,0.000367,31]
[362025378,1747938647240,-155.81,0.000367,31]
[362025380,1747938647250,-155.81,0.000367,31]
[362025382,1747938647260,-155.81,0.000367,31]
[362025384,1747938647269,-155.81,0.000367,31]
[362025386,1747938647279,-155.81,0.000367,31]
[362025388,1747938647289,-155.81,0.000367,31]
[362025390,1747938647299,-155.81,0.000367,31]
[362025391,1747938647310,-155.81,0.000367,31]
[362025393,1747938647320,-155.81,0.000367,31]
[362025395,1747938647330,-155.81,0.000367,31]
[362025397,1747938647340,-155.81,0.000367,31]
[362025399,1747938647350,-155.81,0.000367,31]
[362025401,1747938647360,-155.81,0.000367,31]
[362025403,1747938647370,-155.81,0.000367,31]
[362025405,1747938647380,-155.81,0.000367,31]
[362025407,1747938647395,-155.81,0.000367,31]
[362025428,1747938647613,-155.81,0.000367,31]
[362025430,1747938647623,-155.81,0.000367,31]
[362025431,1747938647632,-486.62,0.00036705,5]
[362025433,1747938647643,-420.0,0.00036705,5]
[362025435,1747938647652,-420.0,0.00036705,5]
[362025437,1747938647662,-755.88,0.00036705,5]